fUST/lending_fUST_20260604
["ID","MTS","AMOUNT","RATE_DAILY","PERIOD"]
[423953322,1780521047000,-502.05069914,0.00017091,2]
[423953318,1780521047000,-155.0,0.0001705,2]
[423953320,1780521047000,-324.49493722,0.00017069,2]
[423953319,1780521047000,-195.67888175,0.00017069,2]
[423953317,1780521047000,-155.0,0.0001705,2]
[423953321,1780521047000,-374.43551148,0.00017069,2]
[423953326,1780521047000,-171.272043,0.00017231,2]
[423953335,1780521047000,-500.0,0.0001726,2]
[423953324,1780521047000,-151.0,0.000172,2]
[423953327,1780521047000,-182.544086,0.00017231,2]
[423953328,1780521047000,-188.399249,0.00017231,2]
[423953329,1780521047000,-500.0,0.0001726,2]
[423953331,1780521047000,-500.0,0.0001726,2]
[423953347,1780521047000,-500.0,0.00017286,2]
[423953346,1780521047000,-500.0,0.00017286,2]
[423953336,1780521047000,-1129.16,0.0001726,2]
[423953349,1780521047000,-500.0,0.00017286,2]
[423953338,1780521047000,-1536.58,0.0001726,2]
[423953337,1780521047000,-500.0,0.0001726,2]
[423953348,1780521047000,-1559.31,0.00017286,2]
[423953309,1780521047000,-500.0,0.00017012,2]
[423953344,1780521047000,-846.3,0.00017286,2]
[423953323,1780521047000,-323.04,0.00017151,2]
[423953315,1780521047000,-500.0,0.00017012,2]
[423953299,1780521047000,-1536.58,0.00016986,2]
[423953313,1780521047000,-500.0,0.00017012,2]
[423953339,1780521047000,-500.0,0.0001726,2]
[423953288,1780521047000,-178.931057,0.00016976,2]
[423953285,1780521047000,-579.11569,0.00016942,2]
[423953289,1780521047000,-500.0,0.00016986,2]
[423953284,1780521047000,-151.0,0.000169,2]
[423953293,1780521047000,-518.64,0.00016986,2]
[423953292,1780521047000,-1740.0,0.00016986,2]
[423953290,1780521047000,-500.0,0.00016986,2]
[423953291,1780521047000,-500.0,0.00016986,2]
[423953286,1780521047000,-1000.0,0.0001695,2]
[423953287,1780521047000,-492.0,0.0001695,2]
[423953295,1780521047000,-500.0,0.00016986,2]
[423953294,1780521047000,-500.0,0.00016986,2]
[423953314,1780521047000,-579.58,0.00017012,2]
[423953298,1780521047000,-500.0,0.00016986,2]
[423953305,1780521047000,-151.0,0.00017,2]
[423953303,1780521047000,-500.0,0.00016986,2]
[423953301,1780521047000,-648.39,0.00016986,2]
[423953300,1780521047000,-500.0,0.00016986,2]
[423953296,1780521047000,-500.0,0.00016986,2]
[423953304,1780521047000,-500.0,0.00016986,2]
[423953302,1780521047000,-500.0,0.00016986,2]
[423953307,1780521047000,-863.81,0.00017012,2]
[423953306,1780521047000,-846.3,0.00017012,2]
[423953308,1780521047000,-500.0,0.00017012,2]
[423953311,1780521047000,-1559.31,0.00017012,2]
[423953310,1780521047000,-500.0,0.00017012,2]
[423953312,1780521047000,-676.0566,0.00017012,2]
[423953297,1780521047000,-1129.16,0.00016986,2]
[423953341,1780521047000,-500.0,0.0001726,2]
[423953345,1780521047000,-863.81,0.00017286,2]
[423953342,1780521047000,-500.0,0.0001726,2]
[423953378,1780521047000,-178.55512401,0.00017553,2]
[423953382,1780521047000,-863.81,0.0001756,2]
[423953393,1780521047000,-231.1834398,0.00017596,2]
[423953391,1780521047000,-391.3577635,0.00017596,2]
[423953386,1780521047000,-579.58,0.0001756,2]
[423953384,1780521047000,-1559.31,0.0001756,2]
[423953389,1780521047000,-312.98263,0.00017587,2]
[423953392,1780521047000,-486.74240583,0.00017596,2]
[423953387,1780521047000,-500.0,0.0001756,2]
[423953385,1780521047000,-500.0,0.0001756,2]
[423953394,1780521047000,-561.65326721,0.00017596,2]
[423953383,1780521047000,-500.0,0.0001756,2]
[423953388,1780521047000,-500.0,0.0001756,2]
[423953390,1780521047000,-266.68016952,0.00017596,2]
[423953396,1780521047000,-217.95989481,0.00017596,2]
[423953406,1780521047000,-500.0,0.00017808,2]
[423953395,1780521047000,-259.45910851,0.00017596,2]
[423953397,1780521047000,-182.88000001,0.000177,2]
[423953408,1780521047000,-500.0,0.00017808,2]
[423953407,1780521047000,-1536.58,0.00017808,2]
[423953399,1780521047000,-500.0,0.00017808,2]
[423953398,1780521047000,-208.33333333,0.000178,2]
[423953404,1780521047000,-500.0,0.00017808,2]
[423953403,1780521047000,-500.0,0.00017808,2]
[423953402,1780521047000,-518.64,0.00017808,2]
[423953405,1780521047000,-1129.16,0.00017808,2]
[423953401,1780521047000,-1740.0,0.00017808,2]
[423953340,1780521047000,-648.39,0.0001726,2]
[423953409,1780521047000,-648.39,0.00017808,2]
[423953379,1780521047000,-154.75910376,0.00017553,2]
[423953374,1780521047000,-265.99370097,0.00017534,2]
[423953400,1780521047000,-500.0,0.00017808,2]
[423953373,1780521047000,-648.39,0.00017534,2]
[423953343,1780521047000,-500.0,0.0001726,2]
[423953351,1780521047000,-500.0,0.00017286,2]
[423953350,1780521047000,-579.58,0.00017286,2]
[423953352,1780521047000,-500.0,0.00017286,2]
[423953355,1780521047000,-516.58,0.00017287,2]
[423953356,1780521047000,-516.58,0.00017287,2]
[423953353,1780521047000,-516.58,0.00017287,2]
[423953376,1780521047000,-500.0,0.00017534,2]
[423953354,1780521047000,-516.58,0.00017287,2]
[423953359,1780521047000,-2004.01734525,0.000174,2]
[423953358,1780521047000,-151.0,0.000173,2]
[423953360,1780521047000,-2004.01734525,0.000174,2]
[423953361,1780521047000,-2004.01734525,0.000174,2]
[423953365,1780521047000,-1740.0,0.00017534,2]
[423953357,1780521047000,-611.77,0.00017287,2]
[423953364,1780521047000,-500.0,0.00017534,2]
[423953366,1780521047000,-518.64,0.00017534,2]
[423953371,1780521047000,-1536.58,0.00017534,2]
[423953375,1780521047000,-423.71650674,0.00017534,2]
[423953380,1780521047000,-600.76934582,0.00017557,2]
[423953377,1780521047000,-160.29806201,0.00017553,2]
[423953372,1780521047000,-500.0,0.00017534,2]
[423953381,1780521047000,-846.3,0.0001756,2]
[423953370,1780521047000,-500.0,0.00017534,2]
[423953368,1780521047000,-500.0,0.00017534,2]
[423953362,1780521047000,-500.0,0.00017534,2]
[423953367,1780521047000,-500.0,0.00017534,2]
[423953363,1780521047000,-550.06,0.00017534,2]
[423953369,1780521047000,-1129.16,0.00017534,2]
[423953455,1780521048000,-518.64,0.00018082,2]
[423953456,1780521048000,-500.0,0.00018082,2]
[423953453,1780521048000,-500.0,0.00018082,2]
[423953452,1780521048000,-500.0,0.00018082,2]
[423953451,1780521048000,-323.04,0.00018008,2]
[423953440,1780521048000,-462.36687961,0.00017947,2]
[423953443,1780521048000,-748.87102295,0.00017947,2]
[423953441,1780521048000,-154.63993332,0.00017947,2]
[423953439,1780521048000,-236.72025151,0.00017947,2]
[423953442,1780521048000,-170.80670491,0.00017947,2]
[423953438,1780521048000,-244.42807159,0.00017947,2]
[423953448,1780521048000,-354.48090533,0.00017947,2]
[423953450,1780521048000,-226.3790627,0.00018,2]
[423953469,1780521048000,-579.58,0.00018108,2]
[423953457,1780521048000,-500.0,0.00018082,2]
[423953449,1780521048000,-299.068435,0.00017994,2]
[423953458,1780521048000,-1129.16,0.00018082,2]
[423953459,1780521048000,-500.0,0.00018082,2]
[423953460,1780521048000,-1536.58,0.00018082,2]
[423953470,1780521048000,-500.0,0.00018108,2]
[423953466,1780521048000,-863.81,0.00018108,2]
[423953463,1780521048000,-308.289678,0.00018093,2]
[423953471,1780521048000,-500.0,0.00018108,2]
[423953461,1780521048000,-500.0,0.00018082,2]
[423953462,1780521048000,-648.39,0.00018082,2]
[423953465,1780521048000,-846.3,0.00018108,2]
[423953445,1780521048000,-324.80311544,0.00017947,2]
[423953454,1780521048000,-1740.0,0.00018082,2]
[423953447,1780521048000,-233.36149068,0.00017947,2]
[423953425,1780521048000,-309.51820752,0.00017903,2]
[423953446,1780521048000,-435.91978963,0.00017947,2]
[423953411,1780521048000,-846.3,0.00017834,2]
[423953413,1780521048000,-216.72,0.00017834,2]
[423953412,1780521048000,-863.81,0.00017834,2]
[423953416,1780521048000,-579.58,0.00017834,2]
[423953414,1780521048000,-1559.31,0.00017834,2]
[423953420,1780521048000,-208.33333333,0.000179,2]
[423953415,1780521048000,-500.0,0.00017834,2]
[423953410,1780521048000,-577.46,0.00017808,2]
[423953417,1780521048000,-500.0,0.00017834,2]
[423953421,1780521048000,-174.87712933,0.00017903,2]
[423953419,1780521048000,-182.88000001,0.000179,2]
[423953418,1780521048000,-500.0,0.00017834,2]
[423953422,1780521048000,-171.24432677,0.00017903,2]
[423953424,1780521048000,-245.87571174,0.00017903,2]
[423953426,1780521048000,-242.24175598,0.00017906,2]
[423953427,1780521048000,-349.75425866,0.00017906,2]
[423953423,1780521048000,-320.59612402,0.00017903,2]
[423953430,1780521048000,-246.35680868,0.00017947,2]
[423953428,1780521048000,-231.85893194,0.00017906,2]
[423953431,1780521048000,-160.07206148,0.00017947,2]
[423953429,1780521048000,-180.24332849,0.00017926,2]
[423953433,1780521048000,-587.03664525,0.00017947,2]
[423953434,1780521048000,-648.98987444,0.00017947,2]
[423953432,1780521048000,-533.36033903,0.00017947,2]
[423953436,1780521048000,-280.63261195,0.00017947,2]
[423953435,1780521048000,-315.66913339,0.00017947,2]
[423953444,1780521048000,-518.91821701,0.00017947,2]
[423953437,1780521048000,-177.24045266,0.00017947,2]
[423953464,1780521048000,-500.0,0.00018108,2]
[423953472,1780521048000,-265.44224343,0.00018196,2]
[423953468,1780521048000,-177.45,0.00018108,2]
[423953506,1780521048000,-791.0,0.00018645,2]
[423953503,1780521048000,-500.0,0.0001863,2]
[423953508,1780521048000,-846.3,0.00018656,2]
[423953507,1780521048000,-500.0,0.00018656,2]
[423953518,1780521048000,-208.55,0.00018904,2]
[423953511,1780521048000,-579.58,0.00018656,2]
[423953517,1780521048000,-518.64,0.00018904,2]
[423953509,1780521048000,-863.81,0.00018656,2]
[423953519,1780521048000,-500.0,0.00018904,2]
[423953510,1780521048000,-1559.31,0.00018656,2]
[423953512,1780521048000,-553.42551227,0.00018656,2]
[423953513,1780521048000,-226.3790627,0.000187,2]
[423953516,1780521048000,-1740.0,0.00018904,2]
[423953504,1780521048000,-648.39,0.0001863,2]
[423953514,1780521048000,-179.441061,0.00018894,2]
[423953520,1780521048000,-1129.16,0.00018904,2]
[423953522,1780521048000,-1536.58,0.00018904,2]
[423953521,1780521048000,-500.0,0.00018904,2]
[423953527,1780521048000,-1559.31,0.0001893,2]
[423953524,1780521048000,-648.39,0.00018904,2]
[423953532,1780521048000,-200.0,0.00019177,2]
[423953531,1780521048000,-200.0,0.00019177,2]
[423953528,1780521048000,-579.58,0.0001893,2]
[423953523,1780521048000,-505.6,0.00018904,2]
[423953529,1780521048000,-200.0,0.00019177,2]
[423953526,1780521048000,-863.81,0.0001893,2]
[423953530,1780521048000,-200.0,0.00019177,2]
[423953467,1780521048000,-1559.31,0.00018108,2]
[423953515,1780521048000,-500.0,0.00018904,2]
[423953502,1780521048000,-1536.58,0.0001863,2]
[423953525,1780521048000,-846.3,0.0001893,2]
[423953501,1780521048000,-500.0,0.0001863,2]
[423953505,1780521048000,-1000.0,0.00018645,2]
[423953475,1780521048000,-500.0,0.00018356,2]
[423953476,1780521048000,-1740.0,0.00018356,2]
[423953474,1780521048000,-500.0,0.00018356,2]
[423953473,1780521048000,-226.3790627,0.000182,2]
[423953478,1780521048000,-500.0,0.00018356,2]
[423953481,1780521048000,-500.0,0.00018356,2]
[423953482,1780521048000,-1536.58,0.00018356,2]
[423953485,1780521048000,-846.3,0.00018382,2]
[423953479,1780521048000,-500.0,0.00018356,2]
[423953484,1780521048000,-648.39,0.00018356,2]
[423953480,1780521048000,-1129.16,0.00018356,2]
[423953483,1780521048000,-500.0,0.00018356,2]
[423953487,1780521048000,-1559.31,0.00018382,2]
[423953477,1780521048000,-518.64,0.00018356,2]
[423953493,1780521048000,-193.038563,0.00018556,2]
[423953500,1780521048000,-1129.16,0.0001863,2]
[423953496,1780521048000,-1740.0,0.0001863,2]
[423953490,1780521048000,-500.0,0.00018382,2]
[423953494,1780521048000,-613.66,0.0001863,2]
[423953498,1780521048000,-500.0,0.0001863,2]
[423953486,1780521048000,-863.81,0.00018382,2]
[423953492,1780521048000,-226.3790627,0.000185,2]
[423953488,1780521048000,-579.58,0.00018382,2]
[423953489,1780521048000,-500.0,0.00018382,2]
[423953495,1780521048000,-500.0,0.0001863,2]
[423953499,1780521048000,-500.0,0.0001863,2]
[423953497,1780521048000,-518.64,0.0001863,2]
[423953491,1780521048000,-226.3790627,0.000184,2]
[423953553,1780521049000,-152.0,0.00019419,7]
[423953568,1780521049000,-1740.0,0.00019726,2]
[423953558,1780521049000,-500.0,0.00019452,2]
[423953556,1780521049000,-500.0,0.00019452,2]
[423953555,1780521049000,-518.64,0.00019452,2]
[423953557,1780521049000,-1129.16,0.00019452,2]
[423953562,1780521049000,-863.81,0.00019478,2]
[423953565,1780521049000,-184.48410847,0.00019695,2]
[423953569,1780521049000,-518.64,0.00019726,2]
[423953573,1780521049000,-1536.58,0.00019726,2]
[423953563,1780521049000,-1559.31,0.00019478,2]
[423953574,1780521049000,-648.39,0.00019726,2]
[423953566,1780521049000,-200.0,0.00019717,2]
[423953564,1780521049000,-579.58,0.00019478,2]
[423953571,1780521049000,-1129.16,0.00019726,2]
[423953570,1780521049000,-500.0,0.00019726,2]
[423953567,1780521049000,-201.36735355,0.00019717,2]
[423953575,1780521049000,-164.05576265,0.00019726,2]
[423953577,1780521049000,-846.3,0.00019752,2]
[423953584,1780521049000,-361928.25583741,0.0002,2]
[423953572,1780521049000,-500.0,0.00019726,2]
[423953551,1780521049000,-152.0,0.00019328,7]
[423953539,1780521049000,-500.0,0.00019178,2]
[423953550,1780521049000,-282.090629,0.00019292,2]
[423953583,1780521049000,-375308.1469722,0.0002,2]
[423953533,1780521049000,-506.81,0.00019178,2]
[423953534,1780521049000,-1740.0,0.00019178,2]
[423953538,1780521049000,-1129.16,0.00019178,2]
[423953536,1780521049000,-518.64,0.00019178,2]
[423953537,1780521049000,-500.0,0.00019178,2]
[423953535,1780521049000,-300.0,0.00019178,2]
[423953540,1780521049000,-1536.58,0.00019178,2]
[423953541,1780521049000,-648.39,0.00019178,2]
[423953552,1780521049000,-152.0,0.00019419,7]
[423953544,1780521049000,-200.0,0.00019199,2]
[423953545,1780521049000,-500.0,0.00019204,2]
[423953546,1780521049000,-846.3,0.00019204,2]
[423953547,1780521049000,-863.81,0.00019204,2]
[423953542,1780521049000,-150.73279667,0.00019195,2]
[423953559,1780521049000,-1536.58,0.00019452,2]
[423953549,1780521049000,-579.58,0.00019204,2]
[423953561,1780521049000,-846.3,0.00019478,2]
[423953560,1780521049000,-648.39,0.00019452,2]
[423953548,1780521049000,-1559.31,0.00019204,2]
[423953543,1780521049000,-342.225,0.00019195,2]
[423953585,1780521049000,-1740.04,0.0002,2]
[423953554,1780521049000,-1740.0,0.00019452,2]
[423953587,1780521049000,-153.38,0.0002,2]
[423953605,1780521049000,-7417.52692825,0.0001452,2]
[423953606,1780521049000,-11009.5,0.00014794,2]
[423953609,1780521049000,-500.0,0.00015094,2]
[423953608,1780521049000,-11009.5,0.00015068,2]
[423953610,1780521049000,-467.52198277,0.00015149,2]
[423953612,1780521049000,-500.0,0.00015368,2]
[423953611,1780521049000,-11009.5,0.00015342,2]
[423953613,1780521049000,-841.53956899,0.00015586,2]
[423953614,1780521049000,-5102.64105534,0.00015616,2]
[423953607,1780521049000,-500.0,0.0001482,2]
[423953615,1780521049000,-1306.5889984,8.878e-05,2]
[423953618,1780521049000,-500.0,0.00014272,2]
[423953617,1780521049000,-500.0,0.00013998,2]
[423953616,1780521049000,-3693.4110016,8.878e-05,2]
[423953621,1780521049000,-500.0,0.00015068,2]
[423953626,1780521049000,-500.0,0.00015642,2]
[423953623,1780521049000,-4306.6469984,0.00015616,2]
[423953622,1780521049000,-500.0,0.00015342,2]
[423953624,1780521049000,-1600.21194626,0.00015616,2]
[423953625,1780521049000,-500.0,0.00015616,2]
[423953619,1780521049000,-500.0,0.0001452,2]
[423953604,1780521049000,-3591.97307175,0.0001452,2]
[423953620,1780521049000,-500.0,0.00014794,2]
[423953603,1780521049000,-500.0,0.00014246,2]
[423953602,1780521049000,-500.0,0.00013972,2]
[423953576,1780521049000,-114577.9883,0.00019727,2]
[423953581,1780521049000,-7151.16601197,0.000199,2]
[423953582,1780521049000,-300.0,0.0002,4]
[423953579,1780521049000,-1559.31,0.00019752,2]
[423953580,1780521049000,-579.58,0.00019752,2]
[423953578,1780521049000,-863.81,0.00019752,2]
[423953588,1780521049000,-1129.32,0.0002,2]
[423953590,1780521049000,-213.0,0.0002,2]
[423953592,1780521049000,-648.5,0.0002,2]
[423953586,1780521049000,-518.82432654,0.0002,2]
[423953596,1780521049000,-579.58,0.00020026,2]
[423953599,1780521049000,-864.01,0.000203,2]
[423953601,1780521049000,-500.0,0.00013698,2]
[423953591,1780521049000,-1536.77,0.0002,2]
[423953595,1780521049000,-1559.31,0.00020026,2]
[423953593,1780521049000,-846.3,0.00020026,2]
[423953598,1780521049000,-846.38,0.000203,2]
[423953594,1780521049000,-863.81,0.00020026,2]
[423953600,1780521049000,-690.29758568,0.000203,2]
[423953597,1780521049000,-169.254377,0.00020257,2]
[423953589,1780521049000,-235.1,0.0002,2]
[423953627,1780521050000,-8960.93574197,0.0001589,2]
[423953634,1780521050000,-500.0,0.0001619,2]
[423953628,1780521050000,-2048.56425803,0.0001589,2]
[423953629,1780521050000,-500.0,0.0001589,2]
[423953631,1780521050000,-1496.07034486,0.00016023,2]
[423953630,1780521050000,-500.0,0.00015916,2]
[423953632,1780521050000,-11009.5,0.00016164,2]
[423953637,1780521050000,-1356.8499505,0.00016438,2]
[423953633,1780521050000,-500.0,0.00016164,2]
[423953636,1780521050000,-500.0,0.00014546,2]
[423953635,1780521050000,-3554.91818143,0.00016438,2]
[423953642,1780521050000,-2337.60991385,0.0001646,2]
[423953643,1780521050000,-500.0,0.00016464,2]
[423953644,1780521050000,-7306.60857778,0.00016712,2]
[423953640,1780521050000,-204.9083597,0.00016438,2]
[423953638,1780521050000,-500.0,0.0001482,2]
[423953641,1780521050000,-5892.82350837,0.00016438,2]
[423953639,1780521050000,-295.0916403,0.00015094,2]
[423953645,1780521083000,187.51101434,0.00023427,120]
[423953646,1780521084000,187.51101434,0.00023427,120]
[423953648,1780521084000,187.51101434,0.00023427,120]
[423953647,1780521084000,187.51101434,0.00023427,120]
[423953651,1780521085000,187.51101434,0.00023427,120]
[423953650,1780521085000,187.51101434,0.00023427,120]
[423953649,1780521085000,187.51101434,0.00023427,120]
[423953652,1780521203000,187.51101433,0.00023448,120]
[423953655,1780521339000,161.52,5e-05,2]
[423953658,1780521428000,292.66,8.206e-05,2]
[423953663,1780521428000,707.34,8.206e-05,2]
[423953662,1780521428000,1000.0,8.206e-05,2]
[423953660,1780521428000,1000.0,8.206e-05,2]
[423953659,1780521428000,1000.0,8.206e-05,2]
[423953661,1780521428000,1000.0,8.206e-05,2]
[423953666,1780521437000,1000.0,8.206e-05,2]
[423953665,1780521437000,292.66,8.206e-05,2]
[423953667,1780521445000,5000.0,8.205e-05,2]
[423953668,1780521453000,5000.0,8.205e-05,2]
[423953669,1780521468000,5000.0,8.205e-05,2]
[423953670,1780521477000,1292.64271879,8.205e-05,2]
[423953672,1780521492000,5000.0,8.205e-05,2]
[423953673,1780521514000,5000.0,8.205e-05,2]
[423953675,1780521536000,5000.0,8.205e-05,2]
[423953676,1780521558000,5000.0,8.205e-05,2]
[423953677,1780521580000,3739.61973543,8.205e-05,2]
[423953736,1780521815000,-966.03784819,8.873e-05,2]
[423953737,1780521815000,-596.0,8.963e-05,2]
[423953735,1780521815000,-323.9838784,8.614e-05,7]
[423953738,1780521815000,-300.0,8.964e-05,2]
[423953740,1780521815000,-13.97827341,8.964e-05,2]
[423953739,1780521815000,-300.0,8.964e-05,2]
[423953741,1780521897000,-213.813,0.00010566,2]
[423953851,1780522232000,-500.0,0.00013697,2]
[423953878,1780522232000,-500.0,0.00013698,2]
[423953881,1780522232000,-397.01448677,0.00013698,2]
[423953872,1780522232000,-540.58,0.00013698,2]
[423953876,1780522232000,-500.0,0.00013698,2]
[423953874,1780522232000,-500.0,0.00013698,2]
[423953868,1780522232000,-500.0,0.00013698,2]
[423953854,1780522232000,-168.39335656,0.00013697,2]
[423953857,1780522232000,-207.35770815,0.00013697,2]
[423953870,1780522232000,-500.0,0.00013698,2]
[423953848,1780522232000,-311.116667,0.00012521,2]
[423953859,1780522232000,-894.8618,0.00013698,2]
[423953862,1780522232000,-500.0,0.00013698,2]
[423953850,1780522232000,-311.116667,0.00012972,2]
[423953839,1780522232000,-311.116667,0.00010716,2]
[423953841,1780522232000,-311.116667,0.00011167,2]
[423953893,1780522232000,-500.0,0.00013698,2]
[423953846,1780522232000,-311.116667,0.00012069,2]
[423953845,1780522232000,-151.55,0.00012,2]
[423953837,1780522232000,-36.187,0.00010566,2]
[423953865,1780522232000,-500.0,0.00013698,2]
[423953843,1780522232000,-311.116667,0.00011618,2]
[423953897,1780522232000,-500.0,0.00013698,2]
[423953900,1780522232000,-500.0,0.00013698,2]
[423953936,1780522232000,-401.86370487,0.00013698,2]
[423953938,1780522232000,-31.5944052,0.00013698,2]
[423953933,1780522232000,-98.13629513,0.00013698,2]
[423953895,1780522232000,-500.0,0.00013698,2]
[423953922,1780522232000,-202.91,0.00013698,2]
[423953928,1780522232000,-239.67,0.00013698,2]
[423953921,1780522232000,-500.0,0.00013698,2]
[423953926,1780522232000,-2.15439266,0.00013698,2]
[423953930,1780522232000,-197.53931221,0.00013698,2]
[423953916,1780522232000,-500.0,0.00013698,2]
[423953932,1780522232000,-500.0,0.00013698,2]
[423953915,1780522232000,-500.0,0.00013698,2]
[423953924,1780522232000,-497.84560734,0.00013698,2]
[423953903,1780522232000,-500.0,0.00013698,2]
[423953887,1780522232000,-500.0,0.00013698,2]
[423953905,1780522232000,-131.88661023,0.00013698,2]
[423953884,1780522232000,-182.07,0.00013698,2]
[423953907,1780522232000,-368.11338977,0.00013698,2]
[423953909,1780522232000,-501.86852882,0.00013698,2]
[423953911,1780522232000,-600.27529481,0.00013698,2]
[423953913,1780522232000,-500.0,0.00013698,2]
[423953890,1780522232000,-500.0,0.00013698,2]
[423954268,1780522238000,-500.0,0.00013698,2]
[423954259,1780522238000,-500.0,0.00013698,2]
[423954272,1780522238000,-500.0,0.00013698,2]
[423954270,1780522238000,-500.0,0.00013698,2]
[423954266,1780522238000,-500.0,0.00013698,2]
[423954265,1780522238000,-500.0,0.00013698,2]
[423954248,1780522238000,-506.19,0.00013698,2]
[423954252,1780522238000,-500.0,0.00013698,2]
[423954242,1780522238000,-500.0,0.00013698,2]
[423954246,1780522238000,-562.57,0.00013698,2]
[423954250,1780522238000,-612.09,0.00013698,2]
[423954244,1780522238000,-500.0,0.00013698,2]
[423954262,1780522238000,-500.0,0.00013698,2]
[423954257,1780522238000,-500.0,0.00013698,2]
[423954261,1780522238000,-500.66916647,0.00013698,2]
[423954240,1780522238000,-468.4055948,0.00013698,2]
[423954283,1780522238000,-500.0,0.00013698,2]
[423954298,1780522238000,-500.0,0.00013698,2]
[423954300,1780522238000,-500.0,0.00013698,2]
[423954302,1780522238000,-500.0,0.00013698,2]
[423954297,1780522238000,-500.0,0.00013698,2]
[423954295,1780522238000,-500.0,0.00013698,2]
[423954293,1780522238000,-500.0,0.00013698,2]
[423954291,1780522238000,-500.42464554,0.00013698,2]
[423954274,1780522238000,-500.0,0.00013698,2]
[423954278,1780522238000,-500.0,0.00013698,2]
[423954281,1780522238000,-500.0,0.00013698,2]
[423954289,1780522238000,-502.54952795,0.00013698,2]
[423954276,1780522238000,-632.93314454,0.00013698,2]
[423954287,1780522238000,-500.0,0.00013698,2]
[423954280,1780522238000,-500.0,0.00013698,2]
[423954285,1780522238000,-500.0,0.00013698,2]
[423954378,1780522239000,-500.0,0.00013698,2]
[423954382,1780522239000,-2974.61698297,0.00013698,2]
[423954377,1780522239000,-500.0,0.00013698,2]
[423954375,1780522239000,-500.0,0.00013698,2]
[423954376,1780522239000,-500.0,0.00013698,2]
[423954369,1780522239000,-293.7,0.00013698,2]
[423954371,1780522239000,-500.0,0.00013698,2]
[423954360,1780522239000,-732.06,0.00013698,2]
[423954359,1780522239000,-500.0,0.00013698,2]
[423954362,1780522239000,-500.0,0.00013698,2]
[423954379,1780522239000,-500.0,0.00013698,2]
[423954373,1780522239000,-500.0,0.00013698,2]
[423954380,1780522239000,-500.0,0.00013698,2]
[423954384,1780522239000,-222.73503852,0.00013698,2]
[423954383,1780522239000,-500.0,0.00013698,2]
[423954385,1780522239000,-1221.0,0.00013698,2]
[423954395,1780522239000,-500.0,0.00013698,2]
[423954391,1780522239000,-500.0,0.00013698,2]
[423954393,1780522239000,-500.0,0.00013698,2]
[423954386,1780522239000,-500.0,0.00013698,2]
[423954357,1780522239000,-500.0,0.00013698,2]
[423954388,1780522239000,-500.0,0.00013698,2]
[423954387,1780522239000,-340.56,0.00013698,2]
[423954394,1780522239000,-500.0,0.00013698,2]
[423954389,1780522239000,-500.0,0.00013698,2]
[423954390,1780522239000,-500.0,0.00013698,2]
[423954392,1780522239000,-511.08,0.00013698,2]
[423954396,1780522239000,-500.0,0.00013698,2]
[423954381,1780522239000,-3285.40301703,0.00013698,2]
[423954367,1780522239000,-500.0,0.00013698,2]
[423954348,1780522239000,-500.0,0.00013698,2]
[423954364,1780522239000,-500.0,0.00013698,2]
[423954306,1780522239000,-500.0,0.00013698,2]
[423954308,1780522239000,-500.0,0.00013698,2]